fUST/lending_fUST_20260628
["ID","MTS","AMOUNT","RATE_DAILY","PERIOD"]
[426570396,1782603032000,-500.0,0.0001616,2]
[426570402,1782603032000,-402.67596602,0.0001616,2]
[426570422,1782603032000,-680.997025,0.00016434,2]
[426570400,1782603032000,-500.0,0.0001616,2]
[426570405,1782603032000,-500.0,0.0001616,2]
[426570386,1782603032000,-680.997025,0.00016148,2]
[426570392,1782603032000,-500.0,0.0001616,2]
[426570407,1782603032000,-298.69648441,0.0001616,2]
[426570403,1782603032000,-500.0,0.0001616,2]
[426570388,1782603032000,-357.9773558,0.00016148,2]
[426570390,1782603032000,-500.0,0.0001616,2]
[426570394,1782603032000,-500.0,0.0001616,2]
[426570409,1782603032000,-408.68582839,0.00016161,2]
[426570398,1782603032000,-500.0,0.0001616,2]
[426570443,1782603032000,-151.0,0.00016438,2]
[426570437,1782603032000,-680.997033,0.00016435,2]
[426570450,1782603032000,-411.179636,0.00016438,2]
[426570470,1782603032000,-558.55850572,0.00018127,2]
[426570472,1782603032000,-1161.345792,0.00018957,2]
[426570473,1782603032000,-5148.31676622,0.0001976,2]
[426570475,1782603032000,-337.09412844,0.00020849,2]
[426570477,1782603032000,-417.96970068,0.00021069,2]
[426570476,1782603032000,-365.7234881,0.00021069,2]
[426570479,1782603032000,-390.61438375,0.00021069,2]
[426570478,1782603032000,-652.42457966,0.00021069,2]
[426570480,1782603032000,-896.42818479,0.00021191,2]
[426570484,1782603032000,-151.0,0.00021918,2]
[426570483,1782603032000,-17.63988755,0.00021918,2]
[426570481,1782603032000,-523.69460498,0.00021191,2]
[426570485,1782603032000,-151.0,0.00021918,2]
[426570482,1782603032000,-133.36011245,0.00021918,2]
[426570486,1782603032000,-151.0,0.00021918,2]
[426570489,1782603032000,-151.0,0.00021918,2]
[426570490,1782603032000,-73.68233482,0.00021918,2]
[426570487,1782603032000,-151.0,0.00021918,2]
[426570488,1782603032000,-151.0,0.00021918,2]
[426570471,1782603032000,-178.095669,0.00018817,2]
[426570468,1782603032000,-492.46663539,0.00016712,2]
[426570474,1782603032000,-162.888868,0.00019878,2]
[426570466,1782603032000,-411.179642,0.00016438,2]
[426570451,1782603032000,-411.179636,0.00016438,2]
[426570446,1782603032000,-151.0,0.00016438,2]
[426570453,1782603032000,-411.179636,0.00016438,2]
[426570452,1782603032000,-411.179636,0.00016438,2]
[426570449,1782603032000,-411.179636,0.00016438,2]
[426570469,1782603032000,-2903.2278062,0.00016921,2]
[426570455,1782603032000,-411.179636,0.00016438,2]
[426570448,1782603032000,-411.179636,0.00016438,2]
[426570454,1782603032000,-411.179636,0.00016438,2]
[426570456,1782603032000,-411.179636,0.00016438,2]
[426570447,1782603032000,-411.179636,0.00016438,2]
[426570461,1782603032000,-411.179636,0.00016438,2]
[426570457,1782603032000,-411.179636,0.00016438,2]
[426570463,1782603032000,-411.179636,0.00016438,2]
[426570464,1782603032000,-411.179636,0.00016438,2]
[426570465,1782603032000,-411.179636,0.00016438,2]
[426570459,1782603032000,-411.179636,0.00016438,2]
[426570445,1782603032000,-151.0,0.00016438,2]
[426570467,1782603032000,-500.0,0.00016438,2]
[426570458,1782603032000,-411.179636,0.00016438,2]
[426570462,1782603032000,-411.179636,0.00016438,2]
[426570460,1782603032000,-411.179636,0.00016438,2]
[426570564,1782603110000,-3640.12023768,0.0001616,2]
[426570567,1782603530000,124576.70139222,0.0002455,120]
[426570569,1782603815000,160.0,0.00029243,30]
[426570642,1782604233000,-151.0,0.000225,2]
[426570644,1782604233000,-1895.06106088,0.000225,2]
[426570641,1782604233000,-151.0,0.000225,2]
[426570639,1782604233000,-1047.76358675,0.000225,2]
[426570637,1782604233000,-3064.9346386,0.00022458,2]
[426570635,1782604233000,-186.518827,0.00022293,2]
[426570632,1782604233000,-163.64,0.00020863,2]
[426570634,1782604233000,-773.3258045,0.00021715,7]
[426570827,1782604247000,-250.76642444,0.000225,2]
[426570834,1782604483000,417.15472785,0.00029243,30]
[426570839,1782604800000,261.94679345,0.00029902,30]
[426570840,1782604820000,160.0,0.00029242,30]
[426570891,1782605432000,-467.61675381,0.00012,2]
[426570895,1782605432000,-95.41510269,0.00020016,2]
[426570893,1782605432000,-605.3571995,0.000149,2]
[426570894,1782605432000,-871.009344,0.00017239,2]
[426570892,1782605432000,-500.0,0.00012,2]
[426570929,1782605440000,-1891.23509802,0.00021069,2]
[426570928,1782605440000,-384.80118771,0.00021069,2]
[426570926,1782605440000,-2190.0159225,0.00021069,2]
[426570927,1782605440000,-213.77843762,0.00021069,2]
[426570923,1782605440000,-438.0031845,0.00021069,2]
[426570922,1782605440000,-684.09100037,0.00021069,2]
[426570921,1782605440000,-2274.88269164,0.00020016,2]
[426570931,1782605440000,-300.11429007,0.00021715,7]
[426570918,1782605440000,-359.56143564,0.00020016,2]
[426570920,1782605440000,-1455.92492265,0.00020016,2]
[426570919,1782605440000,-818.95776899,0.00020016,2]
[426570924,1782605440000,-788.4057321,0.00021069,2]
[426570930,1782605440000,-744.47611359,0.00021715,7]
[426570925,1782605440000,-1401.6101904,0.00021069,2]
[426570933,1782605440000,-287.49053,0.00021918,2]
[426570932,1782605440000,-287.49053,0.00021918,2]
[426570945,1782605440000,-152.68706,0.00022838,2]
[426570943,1782605440000,-238.72302015,0.000224,2]
[426570937,1782605440000,-151.0,0.00021918,2]
[426570941,1782605440000,-316.417435,0.00021918,2]
[426570938,1782605440000,-151.0,0.00021918,2]
[426570944,1782605440000,-211.27437035,0.000224,2]
[426570942,1782605440000,-316.417435,0.00021918,2]
[426570936,1782605440000,-151.0,0.00021918,2]
[426570940,1782605440000,-151.0,0.00021918,2]
[426570934,1782605440000,-287.49053,0.00021918,2]
[426570935,1782605440000,-287.49053,0.00021918,2]
[426570939,1782605440000,-151.0,0.00021918,2]
[426570957,1782605441000,-287.49053,0.00023075,2]
[426570967,1782605441000,-151.0,0.00023536,2]
[426570963,1782605441000,-158.206356,0.00023075,2]
[426570959,1782605441000,-287.49053,0.00023075,2]
[426570956,1782605441000,-287.49053,0.00023075,2]
[426570962,1782605441000,-151.0,0.00023075,2]
[426570960,1782605441000,-151.0,0.00023075,2]
[426570954,1782605441000,-151.0,0.00023075,2]
[426570955,1782605441000,-151.0,0.00023075,2]
[426570952,1782605441000,-1041.14663966,0.00023074,7]
[426570953,1782605441000,-151.0,0.00023075,2]
[426570950,1782605441000,-310.96627605,0.00023074,2]
[426570951,1782605441000,-254.57981568,0.00023074,7]
[426570947,1782605441000,-693.51799456,0.00023,2]
[426570948,1782605441000,-316.417435,0.00023,2]
[426570949,1782605441000,-211.40844067,0.00023074,2]
[426570946,1782605441000,-493.31925027,0.00022849,2]
[426570965,1782605441000,-1041.14663966,0.00023536,7]
[426570958,1782605441000,-287.49053,0.00023075,2]
[426570964,1782605441000,-151.0,0.00023075,2]
[426570961,1782605441000,-151.0,0.00023075,2]
[426570966,1782605441000,-183.061902,0.00023536,2]
[426570987,1782605441000,-381.86972353,0.00024432,7]
[426570988,1782605441000,-2316.98980323,0.00024449,2]
[426570984,1782605441000,-151.0,0.00024228,2]
[426570985,1782605441000,-316.417435,0.00024228,2]
[426570981,1782605441000,-151.0,0.00024228,2]
[426570982,1782605441000,-151.0,0.00024228,2]
[426570983,1782605441000,-187.928606,0.00024228,2]
[426570974,1782605441000,-151.0,0.00023939,2]
[426570977,1782605441000,-287.49053,0.00024228,2]
[426570969,1782605441000,-151.0,0.00023536,2]
[426570976,1782605441000,-162.888868,0.00024191,2]
[426570971,1782605441000,-151.0,0.00023939,2]
[426570968,1782605441000,-151.0,0.00023536,2]
[426570970,1782605441000,-316.417435,0.00023536,2]
[426570986,1782605441000,-1041.14663966,0.00024228,7]
[426570978,1782605441000,-287.49053,0.00024228,2]
[426570975,1782605441000,-151.0,0.00024039,2]
[426570980,1782605441000,-287.49053,0.00024228,2]
[426570972,1782605441000,-151.0,0.00023939,2]
[426570979,1782605441000,-287.49053,0.00024228,2]
[426571067,1782606303000,417.15472785,0.00029244,30]
[426571257,1782606639000,-500.0,0.00024649,2]
[426571256,1782606639000,-179.764641,0.00024649,2]
[426571255,1782606639000,-151.0,0.00024649,2]
[426571254,1782606639000,-151.0,0.00024649,2]
[426571253,1782606639000,-151.0,0.00024649,2]
[426571252,1782606639000,-168.579,0.00024649,7]
[426571249,1782606639000,-153.1,0.0002464,3]
[426571250,1782606639000,-459.34,0.0002464,3]
[426571251,1782606639000,-151.0,0.00024649,2]
[426571248,1782606639000,-306.21,0.0002464,3]
[426571247,1782606639000,-612.41,0.0002464,3]
[426571244,1782606639000,-1948.6854412,0.00023322,2]
[426571246,1782606639000,-335.08271508,0.0002455,2]
[426571245,1782606639000,-186.518827,0.00023447,2]
[426571243,1782606639000,-1066.8531834,0.00023305,2]
[426571242,1782606639000,-2613.0280323,0.00022503,2]
[426571241,1782606639000,-150.22350091,0.00021918,2]
[426571259,1782606639000,-500.0,0.00024649,2]
[426571261,1782606639000,-500.0,0.00024649,2]
[426571258,1782606639000,-500.0,0.00024649,2]
[426571264,1782606639000,-500.0,0.00024649,2]
[426571280,1782606639000,-89268.64930125,0.0002465,2]
[426571278,1782606639000,-192.841768,0.00024649,2]
[426571277,1782606639000,-500.0,0.00024649,2]
[426571271,1782606639000,-500.0,0.00024649,2]
[426571275,1782606639000,-300.0,0.00024649,2]
[426571272,1782606639000,-500.0,0.00024649,2]
[426571260,1782606639000,-500.0,0.00024649,2]
[426571276,1782606639000,-500.0,0.00024649,2]
[426571274,1782606639000,-500.0,0.00024649,2]
[426571273,1782606639000,-500.0,0.00024649,2]
[426571279,1782606639000,-501.36544584,0.00024649,2]
[426571267,1782606639000,-500.0,0.00024649,2]
[426571269,1782606639000,-500.0,0.00024649,2]
[426571268,1782606639000,-500.0,0.00024649,2]
[426571263,1782606639000,-500.0,0.00024649,2]
[426571262,1782606639000,-500.0,0.00024649,2]
[426571265,1782606639000,-500.0,0.00024649,2]
[426571266,1782606639000,-500.0,0.00024649,2]
[426571270,1782606639000,-483.90607814,0.00024649,2]
[426571281,1782606640000,160.0,0.00029244,30]
[426571302,1782606647000,-1449.97772331,0.0002465,2]
[426571311,1782607035000,466.0,0.00030137,30]
[426571386,1782607831000,-428.63213831,0.00024157,2]
[426571387,1782607831000,-369.13622285,0.00024157,2]
[426571391,1782607831000,-500.0,0.00024648,2]
[426571390,1782607831000,-423.32487148,0.00024648,2]
[426571389,1782607831000,-270.85621955,0.00024391,7]
[426571392,1782607831000,-500.0,0.00024648,2]
[426571394,1782607831000,-500.0,0.00024648,2]
[426571393,1782607831000,-500.0,0.00024648,2]
[426571395,1782607831000,-288.54608226,0.00024648,2]
[426571388,1782607831000,-1591.67311904,0.00024157,2]
[426571421,1782607838000,-500.0,0.00024648,2]
[426571420,1782607838000,-500.0,0.00024648,2]
[426571419,1782607838000,-500.0,0.00024648,2]
[426571415,1782607838000,-500.0,0.00024648,2]
[426571425,1782607838000,-500.0,0.00024649,2]
[426571418,1782607838000,-500.0,0.00024648,2]
[426571416,1782607838000,-500.0,0.00024648,2]
[426571414,1782607838000,-437.92492794,0.00024648,2]
[426571424,1782607838000,-350.95581209,0.00024649,2]
[426571409,1782607838000,-500.0,0.00024648,2]
[426571411,1782607838000,-500.0,0.00024648,2]
[426571410,1782607838000,-500.0,0.00024648,2]
[426571413,1782607838000,-500.0,0.00024648,2]
[426571412,1782607838000,-500.0,0.00024648,2]
[426571408,1782607838000,-500.0,0.00024648,2]
[426571407,1782607838000,-211.45391774,0.00024648,2]
[426571417,1782607838000,-500.0,0.00024648,2]
[426571422,1782607838000,-562.8000705,0.00024648,2]
[426571426,1782607838000,-500.0,0.00024649,2]
[426571438,1782607838000,-500.0,0.00024649,2]
[426571423,1782607838000,-500.0,0.00024649,2]
[426571443,1782607838000,-151.0,0.00024649,2]
[426571444,1782607838000,-168.579,0.00024649,7]
[426571441,1782607838000,-214.783297,0.00024649,2]
[426571433,1782607838000,-500.0,0.00024649,2]
[426571436,1782607838000,-500.0,0.00024649,2]
[426571437,1782607838000,-500.0,0.00024649,2]
[426571431,1782607838000,-500.0,0.00024649,2]
[426571442,1782607838000,-151.0,0.00024649,2]
[426571434,1782607838000,-500.0,0.00024649,2]
[426571435,1782607838000,-500.0,0.00024649,2]
[426571428,1782607838000,-500.0,0.00024649,2]
[426571439,1782607838000,-500.0,0.00024649,2]
[426571440,1782607838000,-500.0,0.00024649,2]
[426571445,1782607838000,-19626.16997514,0.0002465,2]
[426571429,1782607838000,-500.0,0.00024649,2]
[426571432,1782607838000,-398.7342547,0.00024649,2]
[426571430,1782607838000,-500.0,0.00024649,2]
[426571427,1782607838000,-500.0,0.00024649,2]
[426571501,1782607843000,-4618.65454512,0.0002465,2]
[426571499,1782607843000,-460.0,0.0002465,2]
[426571500,1782607843000,-1115.78353468,0.0002465,2]
[426571536,1782607846000,-1792.08111015,0.00024648,2]
[426571537,1782607846000,-4029.78535115,0.0002465,2]
[426571551,1782608239000,160.0,0.00029242,30]
[426571552,1782608241000,456.0,0.00029242,30]
[426571554,1782608247000,23450.2335758,7.6e-05,2]
[426571553,1782608247000,1002.25012611,7.6e-05,2]
[426571555,1782608253000,748.00628603,0.00029242,120]
[426571558,1782608458000,160.0,0.00029239,30]
[426571559,1782608472000,-233.05330022,0.00012251,13]
[426571560,1782608489000,-229.6439753,0.00012251,2]
[426571561,1782608505000,-150.22350091,0.00012251,2]
[426571562,1782608522000,-1257.67779371,0.00012375,13]
[426571563,1782608539000,-300.0,0.00012499,2]
[426571564,1782608555000,-3857.39346519,0.000125,2]
[426571730,1782609049000,-456.0,0.00012006,2]
[426571763,1782609552000,-341.4383689,0.00011304,2]
[426571765,1782609942000,160.0,0.00029189,30]
[426571784,1782610081000,160.0,0.00029189,30]
[426571814,1782610221000,5000.0,0.000101,13]
[426571821,1782610227000,156.50866703,0.0002919,110]
[426571820,1782610227000,187.37585317,0.0002919,120]
[426571889,1782610235000,834.06763949,0.0002919,120]
[426571931,1782610238000,-6024.0401259,0.000125,2]
[426571934,1782610238000,-363.85790906,0.00012999,2]
[426571933,1782610238000,-500.0,0.00012999,2]
[426571929,1782610238000,-500.0,0.00011895,2]
[426571935,1782610238000,-500.0,0.00012999,2]
[426571936,1782610238000,-500.0,0.00012999,2]
[426571938,1782610238000,-500.0,0.00012999,2]
[426571939,1782610238000,-500.0,0.00012999,2]
[426571930,1782610238000,-350.86816,0.00012156,2]
[426571937,1782610238000,-500.0,0.00012999,2]
[426571940,1782610238000,-500.0,0.00012999,2]
[426571932,1782610238000,-350.86816,0.00012667,2]
[426571928,1782610238000,-479.5540374,0.00011895,2]
[426571925,1782610238000,-500.0,0.00011895,2]
[426571924,1782610238000,-500.0,0.00011895,2]
[426571946,1782610238000,-500.0,0.00012999,2]
[426571923,1782610238000,-500.0,0.00011895,2]
[426571918,1782610238000,-5000.0,0.00010431,13]
[426571921,1782610238000,-10000.0,0.00011025,2]
[426571922,1782610238000,-6261.21497011,0.00011795,2]
[426571920,1782610238000,-485.489841,0.00011005,2]
[426571919,1782610238000,-150.22350091,0.00010536,2]
[426571917,1782610238000,-7633.0,0.000104,2]
[426571915,1782610238000,-321.0,0.000104,2]
[426571913,1782610238000,-1777.1066512,0.00010296,13]
[426571911,1782610238000,-178.28646496,0.00010296,2]
[426571927,1782610238000,-582.39404339,0.00011895,2]
[426571941,1782610238000,-163.00549017,0.00012999,2]
[426571926,1782610238000,-500.0,0.00011895,2]
[426571942,1782610238000,-500.0,0.00012999,2]
[426571945,1782610238000,-500.0,0.00012999,2]
[426571967,1782610238000,-500.0,0.00016986,2]
[426571970,1782610238000,-153.06554477,0.00017726,2]
[426571971,1782610238000,-213.18,0.00018,2]
[426571969,1782610238000,-507.53336461,0.00017534,2]
[426571966,1782610238000,-500.0,0.00016712,2]
[426571963,1782610238000,-500.0,0.00016438,2]
[426571964,1782610238000,-931.52146954,0.00016477,2]
[426571962,1782610238000,-301.70480581,0.00016438,2]
[426571965,1782610238000,-150.78618869,0.00016477,2]
[426571961,1782610238000,-6261.21497006,0.00015873,2]
[426571959,1782610238000,-288.6100182,0.00014714,2]
[426571958,1782610238000,-350.86816,0.00014202,2]
[426571968,1782610238000,-500.0,0.0001726,2]
[426571957,1782610238000,-279.717663,0.00013699,2]
[426571944,1782610238000,-500.0,0.00012999,2]
[426571955,1782610238000,-504.32388091,0.00013698,2]
[426571948,1782610238000,-500.0,0.00012999,2]
[426571943,1782610238000,-500.0,0.00012999,2]
[426571950,1782610238000,-200.0,0.00012999,2]
[426571949,1782610238000,-500.0,0.00012999,2]
[426571947,1782610238000,-500.0,0.00012999,2]
[426571952,1782610238000,-68372.59102557,0.00013,2]
[426571953,1782610238000,-350.86816,0.00013179,2]
[426571960,1782610238000,-350.86816,0.00014714,2]
[426571954,1782610238000,-350.86816,0.00013691,2]
[426571956,1782610238000,-151.0,0.00013699,2]
[426571951,1782610238000,-500.0,0.00012999,2]
[426571996,1782610239000,-151.0,0.00021918,2]
[426572005,1782610239000,-151.0,0.00021918,2]
[426572003,1782610239000,-151.0,0.00021918,2]
[426572001,1782610239000,-151.0,0.00021918,2]
[426571999,1782610239000,-151.0,0.00021918,2]
[426572000,1782610239000,-151.0,0.00021918,2]
[426572006,1782610239000,-151.0,0.00021918,2]
[426572004,1782610239000,-151.0,0.00021918,2]
[426572011,1782610239000,-237.313076,0.00021918,2]
[426572013,1782610239000,-237.313076,0.00021918,2]
[426572007,1782610239000,-151.0,0.00021918,2]
[426572009,1782610239000,-237.313076,0.00021918,2]
[426572010,1782610239000,-237.313076,0.00021918,2]
[426572012,1782610239000,-237.313076,0.00021918,2]
[426572014,1782610239000,-237.313076,0.00021918,2]
[426572015,1782610239000,-237.313076,0.00021918,2]
[426572016,1782610239000,-237.313076,0.00021918,2]
[426571995,1782610239000,-151.0,0.00021918,2]
[426572008,1782610239000,-185.924247,0.00021918,2]
[426572017,1782610239000,-237.313076,0.00021918,2]
[426571982,1782610239000,-10380.89434731,0.000215,2]
[426571989,1782610239000,-151.0,0.00021918,2]
[426571973,1782610239000,-213.18,0.00018,2]
[426571972,1782610239000,-213.18,0.00018,2]
[426571977,1782610239000,-237.67331526,0.00020548,2]
[426571975,1782610239000,-6261.21497006,0.00019952,2]
[426571974,1782610239000,-300.0,0.00019589,3]
[426571978,1782610239000,-6966.66853931,0.00021,2]
[426571976,1782610239000,-279.717663,0.00020548,2]
[426571979,1782610239000,-1299.68213668,0.00021,2]
[426571981,1782610239000,-641.3,0.0002149,3]
[426571983,1782610239000,-224.76472702,0.00021572,2]
[426571980,1782610239000,-213.76,0.0002149,3]
[426571984,1782610239000,-1554.73105183,0.00021818,2]
[426571985,1782610239000,-855.03,0.00021908,3]
[426571986,1782610239000,-427.52,0.00021908,3]
[426571987,1782610239000,-222.549862,0.00021918,2]
[426571988,1782610239000,-151.0,0.00021918,2]
[426571990,1782610239000,-151.0,0.00021918,2]
[426571991,1782610239000,-151.0,0.00021918,2]
[426571992,1782610239000,-151.0,0.00021918,2]
[426571994,1782610239000,-151.0,0.00021918,2]
[426572020,1782610239000,-237.313076,0.00021918,2]
[426571993,1782610239000,-151.0,0.00021918,2]
[426572022,1782610239000,-237.313076,0.00021918,2]
[426572045,1782610239000,-185.0,0.00023,7]
[426572046,1782610239000,-3044.3950463,0.00023272,2]
[426572049,1782610239000,-166.99051307,0.00023366,2]
[426572047,1782610239000,-1710.06,0.00023278,3]
[426572048,1782610239000,-855.04,0.00023278,3]
[426572051,1782610239000,-163.966,0.00023935,5]
[426572050,1782610239000,-168.579,0.00023935,5]
[426572052,1782610239000,-6261.21497006,0.0002403,2]
[426572053,1782610239000,-1344.06083261,0.00024648,2]
[426572044,1782610239000,-427.52,0.0002286,3]
[426572055,1782610239000,-1042.46753623,0.00024649,2]
[426572056,1782610239000,-1853.27561996,0.00024649,2]
[426572054,1782610239000,-579.14863124,0.00024649,2]
[426572060,1782610239000,-406.80817085,0.00024649,2]
[426572059,1782610239000,-583.09084794,0.00024649,7]
[426572058,1782610239000,-1523.71519286,0.00024649,7]
[426572061,1782610239000,-176.82255238,0.00024649,7]
[426572063,1782610239000,-732.25470752,0.00024649,2]
[426572062,1782610239000,-345.42131159,0.00024649,2]
[426572021,1782610239000,-237.313076,0.00021918,2]
[426572057,1782610239000,-2895.74315618,0.00024649,2]
[426572043,1782610239000,-651.561665,0.000226,2]
[426571997,1782610239000,-151.0,0.00021918,2]
[426572040,1782610239000,-1124.0090664,0.00022309,2]
[426572018,1782610239000,-237.313076,0.00021918,2]
[426572019,1782610239000,-237.313076,0.00021918,2]
[426572023,1782610239000,-237.313076,0.00021918,2]
[426572026,1782610239000,-237.313076,0.00021918,2]
[426572024,1782610239000,-237.313076,0.00021918,2]
[426572027,1782610239000,-237.313076,0.00021918,2]
[426572028,1782610239000,-237.313076,0.00021918,2]
[426572031,1782610239000,-151.0,0.00021918,2]
[426572030,1782610239000,-151.0,0.00021918,2]
[426572029,1782610239000,-237.313083,0.00021918,2]
[426572042,1782610239000,-372.33291443,0.00022348,2]
[426572033,1782610239000,-151.0,0.00021918,2]
[426572034,1782610239000,-151.0,0.00021918,2]
[426572035,1782610239000,-235.347425,0.00021918,2]
[426572036,1782610239000,-4749.84985512,0.000222,2]
[426572039,1782610239000,-207.05867781,0.00022246,2]
[426572037,1782610239000,-190.2781108,0.00022246,2]
[426572041,1782610239000,-608.28106461,0.00022348,2]
[426572038,1782610239000,-342.50059944,0.00022246,2]
[426572032,1782610239000,-151.0,0.00021918,2]
[426572110,1782610240000,-17989.59946794,0.000275,2]
[426572107,1782610240000,-151.0,0.00027397,2]
[426572102,1782610240000,-151.0,0.00027397,2]
[426572104,1782610240000,-194.039635,0.00027397,2]
[426572103,1782610240000,-151.0,0.00027397,2]
[426572101,1782610240000,-152.62882,0.00027397,2]
[426572099,1782610240000,-1000.0,0.000266,2]
[426572100,1782610240000,-151.0,0.00027397,2]
[426572111,1782610240000,-28461.46406223,0.000275,2]
[426572098,1782610240000,-24498.31409231,0.00026444,2]
[426572105,1782610240000,-151.0,0.00027397,2]
[426572109,1782610240000,-501.60033366,0.00027433,2]
[426572108,1782610240000,-151.0,0.00027397,2]
[426572113,1782610240000,-394.37244603,0.00027589,2]
[426572096,1782610240000,-2374.33387988,0.00026444,2]
[426572112,1782610240000,-1554.73105179,0.00027582,2]
[426572114,1782610240000,-1300.48436056,0.00027589,2]
[426572118,1782610240000,-378.22162421,0.00028089,2]
[426572116,1782610240000,-378.22162434,0.00028089,2]
[426572117,1782610240000,-378.22162421,0.00028089,2]
[426572115,1782610240000,-213.19009577,0.000279,2]
[426572123,1782610240000,-174.229001,0.0002842,2]
[426572119,1782610240000,-6261.21497006,0.00028109,2]
[426572122,1782610240000,-1269.824847,0.0002842,2]
[426572121,1782610240000,-1777.754786,0.0002842,2]
[426572125,1782610240000,-160.0,0.0002864,5]
[426572106,1782610240000,-151.0,0.00027397,2]
[426572095,1782610240000,-4318.1455279,0.00026444,2]
[426572087,1782610240000,-1041.14663967,0.00025843,7]
[426572093,1782610240000,-655.06487255,0.00026342,2]
[426572065,1782610240000,-242.43012684,0.00024695,2]
[426572066,1782610240000,-1554.73105179,0.000247,2]
[426572064,1782610240000,-380.0,0.00024658,2]
[426572067,1782610240000,-1041.14663966,0.0002492,7]
[426572068,1782610240000,-800.71496985,0.00025,2]
[426572070,1782610240000,-10364.0,0.00025,2]
[426572069,1782610240000,-2710.56582653,0.00025,2]
[426572075,1782610240000,-152.15,0.00025548,2]
[426572073,1782610240000,-158.05,0.00025433,2]
[426572071,1782610240000,-306.0,0.00025365,7]
[426572072,1782610240000,-157.92,0.00025377,2]
[426572076,1782610240000,-158.53,0.0002565,2]
[426572074,1782610240000,-1000.0,0.000255,2]
[426572077,1782610240000,-179.27,0.00025696,2]
[426572078,1782610240000,-179.27,0.00025698,2]
[426572081,1782610240000,-197.343,0.00025757,2]
[426572079,1782610240000,-179.28,0.000257,2]
[426572080,1782610240000,-746.0,0.00025757,2]
[426572082,1782610240000,-446.0,0.00025757,2]
[426572088,1782610240000,-535.60104128,0.00026,2]
[426572124,1782610240000,-275.95809,0.00028606,14]
[426572089,1782610240000,-19900.0,0.00026,2]
[426572083,1782610240000,-1473.834,0.00025757,2]
[426572085,1782610240000,-163.73,0.00025823,2]
[426572086,1782610240000,-152.17,0.00025839,2]
[426572091,1782610240000,-339.9521,0.000261,3]
[426572092,1782610240000,-196.75925497,0.0002616,2]
[426572094,1782610240000,-28522.39270082,0.00026444,2]
[426572126,1782610240000,-200.0,0.00028747,2]
[426572084,1782610240000,-521.249332,0.000258,2]
[426572127,1782610240000,-746.0,0.00028757,2]
[426572160,1782610240000,-680.84288134,0.0002919,2]
[426572161,1782610240000,-329.30856404,0.0002919,2]
[426572162,1782610240000,-1061.45519699,0.0002919,2]
[426572165,1782610240000,-602.20704663,0.0002919,2]
[426572167,1782610240000,-295.80931716,0.0002919,2]
[426572166,1782610240000,-162.60163644,0.0002919,2]
[426572169,1782610240000,-331.63501765,0.0002919,2]
[426572168,1782610240000,-200.21753634,0.0002919,2]
[426572171,1782610240000,-151.0,0.0002919,7]
[426572172,1782610240000,-151.0,0.0002919,7]
[426572170,1782610240000,-28468.8486733,0.0002919,2]
[426572174,1782610240000,-200.0,0.00029331,2]
[426572173,1782610240000,-151.0,0.0002919,7]
[426572164,1782610240000,-1300.0,0.0002919,2]
[426572176,1782610240000,-300.0,0.00029379,13]
[426572180,1782610240000,-407.0,0.000299,2]
[426572179,1782610240000,-3000.0,0.000299,2]
[426572177,1782610240000,-458.4996,0.000296,3]
[426572178,1782610240000,-178.8069,0.0002969,2]
[426572182,1782610240000,-200.0,0.00029914,2]
[426572185,1782610240000,-3000.0,0.0002994,2]
[426572184,1782610240000,-3000.0,0.0002993,2]